bitfinex/quotes_ETHUSD_20251019
["timestamp","ask_amount","ask_price","bid_price","bid_amount"]
[1760837946680,0.002,3874.4,3874.3,8.66850012]
[1760837948162,0.002,3874.4,3874.3,6.0873887]
[1760837952174,0.101,3874.4,3874.3,4.77524875]
[1760837952555,0.101,3874.4,3874.3,0.90524875]
[1760837953894,0.101,3874.4,3874.3,0.77644875]
[1760837956660,0.2298,3874.4,3874.3,0.77644875]
[1760837957191,0.6796677,3874.4,3874.3,0.77644875]
[1760837958257,0.17579244,3874.4,3874.3,0.77644875]
[1760837959082,0.1308,3874.4,3874.3,0.77644875]
[1760837960310,0.2298,3874.4,3874.3,0.77644875]
[1760837971203,0.1308,3874.4,3874.3,0.77644875]
[1760837973840,0.1308,3874.4,3874.3,1.20984875]
[1760837974944,0.1308,3874.4,3874.3,0.77644875]
[1760837975145,0.002,3874.4,3874.3,1.24094875]
[1760837981921,0.002,3874.4,3874.3,1.36974875]
[1760837985138,0.002,3874.4,3874.3,4.61027128]
[1760837986643,0.002,3874.4,3874.3,4.58446017]
[1760837988048,0.002,3874.4,3874.3,8.48027128]
[1760837988251,0.002,3874.4,3874.3,8.45446017]
[1760837988779,0.002,3874.4,3874.3,9.58089026]
[1760838000796,0.002,3874.4,3874.3,6.53527884]
[1760838000967,0.002,3874.4,3874.3,7.98996017]
[1760838003201,0.002,3874.4,3874.3,5.40884875]
[1760838003608,0.101,3874.4,3874.3,4.77524875]
[1760838005212,0.002,3874.4,3874.3,7.35636017]
[1760838006003,0.002,3874.4,3874.3,3.48636017]
[1760838006406,0.002,3874.4,3874.3,0.90524875]
[1760838009217,0.101,3874.4,3874.3,0.77644875]
[1760838012948,0.002,3874.4,3874.3,0.77644875]
[1760838013431,0.002,3874.4,3874.3,1.36644875]
[1760838013735,0.002,3874.4,3874.3,4.74126504]
[1760838014834,0.002,3874.4,3874.3,8.61126504]
[1760838019638,0.002,3874.4,3874.3,8.15006504]
[1760838020429,0.002,3874.4,3874.3,5.56895362]
[1760838021255,0.002,3874.4,3874.3,8.15006504]
[1760838023166,0.002,3874.4,3874.3,5.56895362]
[1760838024623,0.002,3874.4,3874.3,8.15006504]
[1760838026960,0.002,3874.4,3874.3,8.61126504]
[1760838032187,0.002,3874.4,3874.3,8.15006504]
[1760838032483,0.002,3874.4,3874.3,8.61126504]
[1760838035059,0.002,3874.4,3874.3,4.74126504]
[1760838035279,0.002,3874.4,3874.3,4.76707615]
[1760838039783,0.002,3874.4,3874.3,9.72330061]
[1760838040085,0.002,3874.4,3874.3,9.6974895]
[1760838041073,0.002,3874.4,3874.3,13.5674895]
[1760838041269,0.002,3874.4,3874.3,15.1666895]
[1760838041465,0.002,3874.4,3874.3,15.2954895]
[1760838047318,0.002,3874.8,3874.6,4.94251157]
[1760838047520,0.002,3874.8,3874.7,13.39852902]
[1760838047718,0.002,3874.8,3874.7,17.81142058]
[1760838048101,0.002,3874.8,3874.7,17.91486783]
[1760838053010,0.101,3874.8,3874.7,6.70929841]
[1760838053211,0.101,3874.8,3874.7,3.97144725]
[1760838053616,0.101,3874.8,3874.7,4.60504725]
[1760838054135,0.101,3874.8,3874.7,3.97144725]
[1760838054739,0.101,3874.8,3874.7,4.60504725]
[1760838055600,0.101,3874.8,3874.7,0.10344725]
[1760838062438,0.002,3874.8,3874.7,0.10344725]
[1760838063140,0.002,3874.8,3874.7,0.23224725]
[1760838063663,0.002,3874.8,3874.7,2.81309221]
[1760838065536,0.002,3874.8,3874.7,2.83890065]
[1760838069564,0.002,3874.8,3874.7,3.47250065]
[1760838069855,0.002,3874.8,3874.7,3.44669221]
[1760838071051,0.002,3874.8,3874.7,7.78479221]
[1760838071242,0.002,3874.8,3874.7,8.82404973]
[1760838072131,0.002,3874.8,3874.7,10.42324973]
[1760838073147,0.002,3874.8,3874.7,9.95314973]
[1760838073824,0.002,3874.8,3874.7,10.42324973]
[1760838074556,0.002,3874.8,3874.7,9.95314973]
[1760838075530,0.002,3874.8,3874.7,10.42324973]
[1760838082270,0.002,3874.8,3874.7,10.55204973]
[1760838090574,0.002,3874.8,3874.7,10.08194973]
[1760838093899,0.002,3874.8,3874.7,7.50110477]
[1760838094054,0.101,3874.8,3874.7,4.10024725]
[1760838094493,0.101,3874.8,3874.7,4.73384725]
[1760838094786,0.101,3874.8,3874.7,0.86584725]
[1760838099193,0.002,3874.8,3874.7,0.86584725]
[1760838100615,0.002,3874.8,3874.7,4.73384725]
[1760838104414,0.002,3874.8,3874.7,6.46184725]
[1760838109026,0.002,3874.8,3874.7,9.04269221]
[1760838109194,0.002,3874.8,3874.7,10.24911338]
[1760838109396,0.002,3874.8,3874.7,5.94026842]
[1760838112134,0.002,3874.8,3874.7,8.52111338]
[1760838112431,0.002,3874.8,3874.7,5.09261338]
[1760838112723,0.002,3874.8,3874.7,5.11842182]
[1760838113534,0.002,3874.8,3874.7,2.51176842]
[1760838113701,0.002,3874.8,3874.7,2.07226842]
[1760838114639,0.002,3874.8,3874.7,4.65311338]
[1760838116333,0.002,3874.8,3874.7,6.38111338]
[1760838116638,0.002,3874.8,3874.7,2.07226842]
[1760838117818,0.002,3874.8,3874.7,4.65311338]
[1760838118338,0.002,3874.8,3874.7,8.98642182]
[1760838118525,0.002,3874.8,3874.7,8.96061338]
[1760838128281,0.101,3874.8,3874.7,4.10024725]
[1760838130110,0.101,3874.8,3874.7,0.23224725]
[1760838132011,0.101,3874.8,3874.7,0.10344725]
[1760838142140,6.78522446,3874.8,3874.7,0.10344725]
[1760838144527,6.83021256,3874.8,3874.7,0.10344725]
[1760838148138,7.23505743,3874.8,3874.7,0.10344725]
[1760838153090,2.17983297,3874.8,3874.7,0.10344725]
[1760838154049,2.27883297,3874.8,3874.7,0.10344725]
[1760838160076,2.17983297,3874.8,3874.7,0.10344725]
[1760838161005,1.7749881,3874.8,3874.7,0.10344725]
[1760838164002,2.17982707,3874.8,3874.7,0.57764725]
[1760838165100,1.7749881,3874.8,3874.7,0.57764725]
[1760838166982,1.7749881,3874.8,3874.7,0.10344725]
[1760838168184,2.17983001,3874.8,3874.7,0.10344725]
[1760838175801,1.7749881,3874.8,3874.7,0.10344725]
[1760838178819,2.17983012,3874.8,3874.7,0.10344725]
[1760838181616,0.45183012,3874.8,3874.7,0.57764725]
[1760838181814,0.002,3874.8,3874.7,0.57764725]
[1760838189488,0.002,3874.8,3874.7,0.90649054]
[1760838189656,0.002,3874.8,3874.7,1.03529054]
[1760838190158,0.002,3874.8,3874.7,1.69469898]
[1760838190544,0.002,3874.8,3874.7,4.2497355]
[1760838191662,0.002,3874.8,3874.7,4.27554394]
[1760838191865,0.002,3874.8,3874.7,4.2497355]
[1760838192219,0.002,3874.8,3874.7,4.27554394]
[1760838192420,0.002,3874.8,3874.7,4.2497355]
[1760838194250,0.002,3874.8,3874.7,4.27554394]
[1760838195162,0.002,3874.8,3874.7,8.14354394]
[1760838195351,0.002,3874.8,3874.7,8.1177355]
[1760838201061,0.002,3874.8,3874.7,4.2497355]
[1760838201266,0.002,3874.8,3874.7,4.27554394]
[1760838204364,0.002,3874.8,3874.7,4.2497355]
[1760838208680,0.002,3874.8,3874.7,1.19469054]
[1760838208983,0.002,3874.8,3874.7,0.86584725]
[1760838209144,0.1014,3874.8,3874.7,0.86584725]
[1760838209585,0.002,3874.8,3874.7,0.86584725]
[1760838210648,0.002,3874.8,3874.7,3.44669221]
[1760838210849,0.002,3874.8,3874.7,1.51159824]
[1760838211073,0.002,3874.8,3874.7,1.94039824]
[1760838211250,0.002,3874.8,3874.7,1.51159824]
[1760838220486,0.002,3874.8,3874.7,0.86584725]
[1760838227417,0.002,3874.8,3874.7,0.23224725]
[1760838227627,0.1014,3874.8,3874.7,0.23224725]
[1760838227992,0.002,3874.8,3874.7,0.23224725]
[1760838228195,0.1014,3874.8,3874.7,0.23224725]
[1760838228900,0.002,3874.8,3874.7,0.23224725]
[1760838229100,0.002,3874.8,3874.7,4.1989359]
[1760838230825,0.002,3874.8,3874.7,8.0669359]
[1760838231027,0.002,3874.8,3874.7,8.04112746]
[1760838234214,0.002,3874.8,3874.7,7.31469221]
[1760838241646,0.002,3874.8,3874.7,7.18589221]
[1760838249440,0.002,3874.8,3874.7,3.31789221]
[1760838251475,0.002,3874.8,3874.7,0.73704725]
[1760838251759,0.002,3874.8,3874.7,1.32704725]
[1760838253566,0.002,3874.8,3874.7,0.86584725]
[1760838255578,0.002,3874.8,3874.7,3.44669221]
[1760838256279,0.002,3874.8,3874.7,4.4824789]
[1760838257481,0.002,3874.8,3874.7,4.9436789]
[1760838260391,0.002,3874.8,3874.7,8.8116789]
[1760838279826,0.002,3875.2,3874.9,3.21431176]
[1760838280126,0.002,3875.2,3875.1,7.54882446]
[1760838280499,0.002,3875.2,3875.1,10.58730302]
[1760838281029,0.002,3875.2,3875.1,11.2002909]
[1760838284058,0.002,3875.2,3875.1,15.0662909]
[1760838290037,0.002,3875.2,3875.1,15.1950909]
[1760838290238,0.002,3875.2,3875.1,17.82757043]
[1760838293565,0.002,3875.2,3875.1,17.59657043]
[1760838295140,0.002,3875.3,3875.2,4.94211197]
[1760838295333,0.002,3875.3,3875.2,5.40001197]
[1760838295762,0.002,3875.3,3875.2,5.50344504]
[1760838295963,0.002,3875.3,3875.2,8.13592457]
[1760838298964,0.002,3875.6,3875.5,3.21391221]
[1760838299175,0.002,3876.0,3875.9,4.94164592]
[1760838299352,0.002,3876.0,3875.9,17.40194838]
[1760838299552,0.2501,3877.0,3876.8,3.21304696]
[1760838300270,0.2501,3877.0,3876.8,3.46314696]
[1760838300450,0.1,3877.6,3877.5,3.2125813]
[1760838300771,0.2503,3877.6,3877.5,3.53383943]
[1760838301152,0.2503,3877.6,3877.5,3.71223943]
[1760838301349,0.2503,3877.6,3877.5,3.3909813]
[1760838303856,0.2503,3877.6,3877.5,0.812]
[1760838304140,0.2503,3877.6,3877.5,3.3909813]
[1760838308484,0.2503,3877.6,3877.5,0.1784]
[1760838313080,0.29525425,3877.6,3877.5,0.1784]
[1760838314064,0.19525425,3877.6,3877.5,0.1784]
[1760838314264,0.04495425,3877.6,3877.5,0.1784]
[1760838314453,0.04495425,3877.6,3877.5,2.8861813]
[1760838318887,0.40650645,3877.8,3877.7,3.21244828]
[1760838319257,0.40650645,3877.8,3877.7,3.81314828]
[1760838319479,0.40650645,3877.8,3877.7,3.74775473]
[1760838320785,0.002,3877.8,3877.7,3.74775473]
[1760838322672,0.002,3877.8,3877.7,3.61895473]
[1760838322888,0.002,3877.8,3877.7,4.33985914]
[1760838326093,0.002,3877.8,3877.7,4.83754762]
[1760838326399,0.002,3877.8,3877.7,4.81175914]
[1760838328524,0.002,3877.8,3877.7,8.67575914]
[1760838332776,0.002,3877.8,3877.7,8.80455914]
[1760838334383,0.002,3877.8,3877.7,8.33265914]
[1760838338020,0.002,3877.8,3877.7,8.76035914]
[1760838340546,0.002,3877.8,3877.7,4.89635914]
[1760838340821,0.002,3877.8,3877.7,4.92214762]
[1760838343838,0.002,3877.8,3877.7,7.51114762]
[1760838344038,0.002,3877.8,3877.7,7.48535914]
[1760838345100,0.002,3877.8,3877.7,7.05765914]
[1760838346137,0.002,3877.8,3877.7,4.46865914]
[1760838346339,0.002,3877.8,3877.7,4.89635914]
[1760838348212,0.002,3878.0,3877.9,3.21231528]
[1760838348644,0.002,3878.0,3877.9,3.64001528]
[1760838348952,0.002,3878.0,3877.9,3.74338259]
[1760838352222,0.002,3878.0,3877.9,5.47138259]
[1760838353825,0.002,3878.0,3877.9,9.33538259]
[1760838354151,0.002,3878.0,3877.9,11.45945405]
[1760838354722,0.002,3878.4,3878.2,3.862]
[1760838354939,0.002,3878.4,3878.3,12.71217378]
[1760838355243,0.002,3878.4,3878.3,17.00187378]
[1760838355455,0.002,3878.4,3878.3,12.14900622]
[1760838355629,0.002,3878.4,3878.3,18.57798953]
[1760838358253,0.002,3878.4,3878.3,18.70678953]
[1760838359539,0.002,3878.4,3878.3,18.57798953]
[1760838366883,0.002,3878.6,3878.5,8.79991635]
[1760838367345,0.002,3878.6,3878.5,9.24001635]
[1760838367684,0.002,3878.6,3878.5,11.97584423]
[1760838369451,0.002,3878.6,3878.5,12.10464423]
[1760838373184,0.002,3878.6,3878.5,11.66454423]
[1760838373984,0.101,3878.6,3878.5,9.93654423]
[1760838374184,0.101,3878.6,3878.5,9.8960647]
[1760838377201,0.101,3878.6,3878.5,0.10334835]
[1760838377702,0.002,3878.6,3878.5,3.3152647]
[1760838377997,0.101,3878.6,3878.5,3.3152647]
[1760838378587,0.101,3878.6,3878.5,0.73694835]
[1760838378772,0.101,3878.6,3878.5,3.3152647]
[1760838381475,0.101,3878.6,3878.5,0.73694835]
[1760838383401,0.101,3878.6,3878.5,3.3152647]
[1760838387502,0.101,3878.6,3878.5,7.1752647]
[1760838389310,0.101,3878.6,3878.5,0.10334835]
[1760838394480,1.829,3878.6,3878.5,0.10334835]
[1760838396727,1.87394681,3878.6,3878.5,0.10334835]
[1760838397329,2.27841071,3878.6,3878.5,0.10334835]
[1760838397701,0.45141071,3878.6,3878.5,0.10334835]
[1760838397901,0.55041071,3878.6,3878.5,0.10334835]
[1760838399927,0.45141071,3878.6,3878.5,0.10334835]
[1760838400124,0.55041071,3878.6,3878.5,0.10334835]
[1760838409054,0.14594681,3878.6,3878.5,0.10334835]
[1760838409428,0.04694681,3878.6,3878.5,0.10334835]
[1760838412241,0.45139646,3878.6,3878.5,0.10334835]
[1760838413252,0.04694681,3878.6,3878.5,0.10334835]
[1760838417741,0.45139096,3878.6,3878.5,0.10334835]
[1760838426238,0.04694681,3878.6,3878.5,3.1113647]
[1760838426438,0.002,3878.8,3878.7,2.57818341]
[1760838426637,0.002,3878.8,3878.7,4.93978341]
[1760838426858,0.002,3879.0,3878.9,3.21165047]
[1760838427175,0.002,3879.0,3878.9,3.23743097]
[1760838427398,0.002,3879.0,3878.9,4.30144791]
[1760838427965,0.002,3879.0,3878.9,4.27566741]
[1760838429568,0.002,3879.0,3878.9,0.63481694]
[1760838429744,0.002,3879.0,3878.7,0.10335503]
[1760838429961,0.002,3879.0,3878.7,0.53255503]
[1760838430166,0.002,3879.0,3878.8,0.4292]
[1760838430673,0.002,3879.0,3878.8,3.00726344]
[1760838431182,0.002,3879.0,3878.8,2.57806344]
[1760838431390,0.002,3879.0,3878.9,3.53321609]
[1760838431688,0.002,3879.0,3878.9,0.95516562]
[1760838432092,0.002,3879.0,3878.7,0.10335503]
[1760838432292,0.2473,3878.9,3878.7,0.10335503]
[1760838433383,0.0995,3878.8,3878.7,0.10335503]
[1760838433585,0.1483,3878.9,3878.7,0.10335503]
[1760838436996,0.002,3879.0,3878.7,0.10335503]
[1760838439781,0.002,3879.0,3878.7,0.53255503]
[1760838440297,0.002,3879.0,3878.7,0.4292]
[1760838440504,0.002,3879.0,3878.8,0.40438574]
[1760838441110,0.002,3879.0,3878.9,0.4292]
[1760838441671,0.002,3879.0,3878.9,0.83358574]
[1760838442607,0.002,3879.0,3878.9,0.40438574]
[1760838443593,0.002,3879.0,3878.9,0.83358574]
[1760838443799,0.002,3879.0,3878.9,1.43515594]
[1760838447418,0.002,3879.0,3878.9,0.40438574]
[1760838447904,0.102,3879.0,3878.9,0.40438574]
[1760838448106,0.002,3879.0,3878.9,0.40438574]
[1760838452512,0.002,3879.0,3878.9,0.83358574]
[1760838453220,0.002,3879.0,3878.9,0.40438574]
[1760838455729,0.002,3879.0,3878.9,0.84158574]
[1760838456285,0.002,3879.0,3878.9,0.40438574]
[1760838457912,0.002,3879.0,3878.9,0.84158574]
[1760838466321,0.002,3879.0,3878.9,0.40438574]
[1760838466528,0.002,3879.0,3878.9,0.84158574]
[1760838467034,0.002,3879.0,3878.9,3.76181812]
[1760838468635,0.002,3879.0,3878.9,1.18376765]
[1760838469521,0.002,3879.0,3878.9,3.76181812]
[1760838470142,0.002,3879.0,3878.9,1.18376765]
[1760838470302,0.002,3879.0,3878.9,0.40438574]
[1760838475260,0.002,3879.0,3878.9,0.84158574]
[1760838476940,0.002,3879.0,3878.9,0.40438574]
[1760838481469,0.002,3879.0,3878.9,0.84158574]
[1760838485364,0.002,3879.0,3878.9,0.85188574]
[1760838485665,0.002,3879.0,3878.9,1.54549764]
[1760838492558,0.002,3879.0,3878.9,0.85188574]
[1760838495642,0.002,3879.0,3878.9,0.40438574]
[1760838500557,0.002,3879.0,3878.9,0.86698574]
[1760838508182,0.002,3879.0,3878.9,4.07863621]
[1760838508362,0.002,3879.0,3878.9,4.20743621]
[1760838508565,0.002,3879.0,3878.9,4.88619744]
[1760838508765,0.002,3879.0,3878.9,4.91197794]
[1760838508974,0.002,3879.0,3878.9,4.88619744]
[1760838514491,0.002,3879.0,3878.9,4.91197794]
[1760838514990,0.002,3879.0,3878.9,4.88619744]
[1760838515190,0.002,3879.0,3878.9,4.91197794]
[1760838515394,0.002,3879.0,3878.9,4.88619744]
[1760838516897,0.002,3879.0,3878.9,9.10017794]
[1760838517073,0.002,3879.0,3878.9,9.20319744]
[1760838517902,0.002,3879.0,3878.9,9.33510586]
[1760838525307,0.002,3879.0,3878.9,8.74059744]
[1760838526211,0.002,3879.0,3878.9,9.20799744]
[1760838526706,0.002,3879.0,3878.9,8.74059744]
[1760838527409,0.002,3879.0,3878.9,6.15159744]
[1760838527640,0.002,3879.0,3878.9,4.42359744]
[1760838532600,0.002,3879.0,3878.9,8.28359744]
[1760838540993,0.002,3879.0,3878.9,8.75099744]
[1760838543696,0.002,3879.0,3878.9,8.28359744]
[1760838546006,0.002,3879.0,3878.9,8.74849744]
[1760838546722,0.002,3879.0,3878.9,8.28359744]
[1760838562273,0.002,3879.0,3878.9,4.29479744]
[1760838562476,0.002,3879.0,3878.9,4.73779744]
[1760838564562,0.002,3879.0,3878.9,6.46579744]
[1760838569087,0.002,3879.0,3878.9,6.02279744]
[1760838571078,0.101,3879.0,3878.9,0.40438574]
[1760838571275,0.101,3879.0,3878.9,1.03798574]
[1760838572188,0.101,3879.0,3878.9,1.16678574]
[1760838572962,0.101,3879.0,3878.9,3.74483621]
[1760838574968,0.101,3879.0,3878.9,1.16678574]
[1760838575484,0.4023,3878.6,3878.4,0.001]
[1760838575684,1.728,3878.4,3876.2,2.57984562]
[1760838575883,6.68422446,3877.8,3875.9,0.6707]
[1760838576060,6.68422446,3877.8,3876.9,0.10342371]
[1760838576266,6.78322446,3877.8,3876.9,0.10342371]
[1760838576562,6.88664977,3877.8,3877.1,0.10342531]
[1760838576791,6.78322446,3877.8,3877.1,0.10342531]
[1760838578670,6.8281759,3877.8,3877.1,0.10342531]
[1760838579780,6.8281759,3877.8,3877.3,0.002]
[1760838581474,1.87195144,3877.8,3877.3,0.002]
[1760838581798,1.87195144,3877.8,3877.7,0.10441435]
[1760838581985,1.827,3877.8,3877.7,0.10441435]
[1760838584605,1.87194928,3877.8,3877.7,0.10441435]
[1760838591614,1.87194928,3877.8,3877.7,0.06418435]
[1760838592181,2.2764727,3877.8,3877.7,0.06418435]
[1760838594995,0.5484727,3877.8,3877.7,0.06418435]
[1760838597416,0.5494727,3877.8,3877.7,0.06418435]
[1760838597784,0.4504727,3877.8,3877.7,0.06418435]
[1760838601532,0.4504727,3877.8,3877.7,0.02797735]
[1760838606422,0.1288,3877.7,3877.3,0.45]
[1760838608543,0.4504727,3877.8,3877.6,0.454]
[1760838608731,0.001,3877.8,3877.7,1.12846]
[1760838608936,0.001,3877.8,3877.7,1.58146]
[1760838610743,0.001,3877.8,3877.7,1.60724848]
[1760838612023,0.001,3877.8,3877.7,4.16030828]
[1760838612364,0.001,3877.8,3877.7,4.28946755]
[1760838615665,0.001,3877.8,3877.7,6.01746755]
[1760838615818,0.001,3877.8,3877.7,5.99167907]
[1760838617223,0.001,3877.8,3877.7,9.85167907]
[1760838617785,0.001,3877.8,3877.7,9.39867907]
[1760838617957,0.001,3877.8,3877.7,9.85167907]
[1760838618315,0.001,3877.8,3877.7,8.12367907]
[1760838618520,0.001,3877.8,3877.7,6.67101907]
[1760838618941,0.001,3877.8,3877.7,7.30461907]
[1760838621326,0.001,3877.8,3877.7,3.89761907]
[1760838627286,0.001,3877.8,3877.7,7.75761907]
[1760838633885,0.001,3877.8,3877.7,9.74401907]
[1760838634211,0.001,3877.8,3877.7,11.90414124]
[1760838634583,0.001,3877.8,3877.7,11.64574124]
[1760838636783,0.001,3877.8,3877.7,11.90414124]
[1760838637606,0.001,3877.8,3877.7,11.64574124]
[1760838643795,0.001,3877.8,3877.7,11.19274124]
[1760838644222,0.001,3877.8,3877.7,11.63164124]
[1760838647929,0.001,3877.8,3877.7,11.19274124]
[1760838648517,0.001,3877.8,3877.7,11.63164124]
[1760838651232,0.001,3877.8,3877.7,11.45114124]
[1760838651398,0.001,3877.8,3877.7,11.89004124]
[1760838653117,0.001,3877.8,3877.7,11.19274124]
[1760838653333,0.001,3877.8,3877.7,11.63164124]
[1760838654652,0.001,3877.8,3877.7,11.19274124]
[1760838654804,0.101,3877.8,3877.7,9.03261907]
[1760838655004,0.001,3877.8,3877.7,9.03261907]
[1760838655842,0.001,3877.8,3877.7,7.30461907]
[1760838656048,0.102,3877.8,3877.7,7.30461907]
[1760838658452,0.001,3877.8,3877.7,7.30461907]
[1760838663549,0.001,3877.8,3877.7,7.74351907]
[1760838664076,0.001,3877.8,3877.7,7.30461907]
[1760838671657,0.001,3877.8,3877.7,7.74161907]
[1760838671868,0.001,3877.8,3877.7,7.30461907]
[1760838672069,0.001,3877.8,3877.7,7.74161907]
[1760838673181,0.001,3877.8,3877.7,7.30461907]
[1760838673887,0.001,3877.8,3877.7,7.74161907]
[1760838674562,0.001,3877.8,3877.7,10.50187879]
[1760838675349,0.001,3877.8,3877.7,10.76027879]
[1760838676284,0.001,3877.8,3877.7,40.63147879]
[1760838676587,0.001,3877.8,3877.7,31.84017179]
[1760838677064,0.001,3877.8,3877.7,27.98017179]
[1760838677261,0.001,3877.8,3877.7,33.86579579]
[1760838677461,0.001,3878.6,3877.7,33.86579579]
[1760838677462,0.001,3878.6,3878.5,4.93991635]
[1760838677666,0.001,3878.6,3878.5,5.71753141]
[1760838677865,0.001,3878.6,3878.5,6.12874825]
[1760838678084,0.001,3878.6,3878.5,6.23209794]
[1760838678285,0.001,3878.6,3878.5,5.79509794]
[1760838679206,0.001,3878.6,3878.5,6.23209794]
[1760838679502,0.001,3878.6,3878.5,5.79509794]
[1760838679671,0.001,3878.6,3878.5,6.23209794]
[1760838679870,0.001,3878.6,3878.5,5.79509794]
[1760838680303,0.001,3878.6,3878.5,6.23209794]
[1760838680997,0.001,3878.6,3878.5,10.53816794]
[1760838681306,0.001,3878.6,3878.5,9.14683794]
[1760838681808,0.002,3879.4,3878.6,27.08516488]
[1760838682110,0.002,3879.4,3878.6,25.06839987]
[1760838682284,0.002,3879.4,3878.9,11.07448847]
[1760838682485,0.002,3879.4,3878.9,13.67548847]
[1760838682715,0.002,3879.4,3878.9,14.11248847]
[1760838682922,0.002,3879.4,3878.9,14.21582107]
[1760838683078,0.002,3879.4,3878.9,16.6540874]
[1760838683799,0.002,3879.4,3878.9,10.5192494]
[1760838684114,0.002,3879.4,3878.9,10.0822494]
[1760838684276,0.101,3879.4,3878.9,7.64398307]
[1760838685211,0.002,3879.4,3878.9,7.64398307]
[1760838687486,0.002,3879.4,3878.9,7.77278307]
[1760838688617,0.002,3879.4,3878.9,8.20978307]
[1760838689189,0.002,3879.4,3878.9,7.77278307]
[1760838689718,0.101,3879.4,3878.9,7.77278307]
[1760838690087,0.099,3879.3,3878.9,7.77278307]
[1760838691801,0.002,3879.4,3878.9,8.03118307]
[1760838692001,0.002,3879.4,3878.9,9.1358152]
[1760838694925,0.101,3879.4,3878.9,9.1358152]
[1760838696017,0.002,3879.4,3878.9,6.2764152]
[1760838696229,0.101,3879.0,3878.9,5.17178307]
[1760838698027,0.002,3879.0,3878.9,5.17178307]
[1760838701214,0.002,3879.0,3878.9,9.03178307]
[1760838702131,0.002,3879.0,3878.9,9.29018307]
[1760838708534,0.002,3879.0,3878.9,9.76228307]
[1760838708703,0.002,3879.0,3878.9,11.76496145]
[1760838709209,0.002,3879.0,3878.9,28.13918545]
[1760838710340,0.002,3879.0,3878.9,35.40212045]
[1760838711330,0.002,3879.0,3878.9,35.41476045]
[1760838711536,0.002,3879.0,3878.9,34.93874545]
[1760838712433,0.002,3879.0,3878.9,34.94911245]
[1760838713326,0.002,3879.0,3878.9,7.90496145]
[1760838713519,0.002,3879.0,3878.9,35.43546745]
[1760838713718,0.002,3879.0,3878.9,34.93874545]
[1760838714635,0.002,3879.0,3878.9,34.89660545]
[1760838715643,0.002,3879.0,3878.9,34.89556645]
[1760838717713,0.002,3879.0,3878.9,34.88406745]
[1760838718137,0.002,3879.4,3879.3,8.16760911]
[1760838718347,0.002,3879.4,3879.3,13.75287002]
[1760838718642,0.002,3879.4,3879.3,14.22497002]
[1760838718838,0.002,3879.4,3879.3,14.97477002]
[1760838720550,0.001,3879.8,3879.7,3.21111888]
[1760838720713,0.001,3879.8,3879.7,12.51911852]
[1760838720916,0.001,3879.8,3879.7,14.69512553]
[1760838721146,0.001,3879.8,3879.7,15.46997795]
[1760838723055,0.001,3879.8,3879.7,19.32997795]
[1760838723453,0.001,3879.8,3879.7,19.84078117]
[1760838724960,0.001,3879.8,3879.7,19.36868117]
[1760838725178,0.001,3879.8,3879.7,19.80848117]
[1760838725830,0.001,3879.8,3879.7,19.36868117]
[1760838726038,0.001,3879.8,3879.7,25.24180417]
[1760838728265,0.001,3879.8,3879.7,25.37060417]
[1760838741799,0.001,3880.2,3880.1,25.76923562]
[1760838741948,0.001,3880.2,3880.1,25.81196562]
[1760838742146,0.001,3880.2,3880.1,26.04586062]
[1760838742368,0.001,3880.2,3880.1,25.98965562]
[1760838742752,0.001,3880.2,3880.1,25.04114562]
[1760838742947,0.001,3880.2,3880.1,28.14572515]
[1760838743684,0.1533,3881.4,3881.3,3.21005634]
[1760838743876,0.2523,3881.4,3881.3,3.21005634]
[1760838744077,0.2523,3881.4,3881.3,3.33885634]
[1760838744248,0.1533,3881.4,3881.3,4.18269607]
[1760838744453,0.2523,3881.4,3881.3,4.18269607]
[1760838745084,0.1533,3881.4,3881.3,4.18269607]
[1760838745281,0.1533,3881.7,3881.6,2.57625721]
[1760838745574,0.2523,3881.7,3881.6,8.69148171]
[1760838745996,0.2523,3881.7,3881.6,8.94378171]
[1760838747312,0.2523,3881.7,3881.6,7.78515721]
[1760838749414,0.2523,3881.7,3881.6,1.9803]
[1760838749891,0.2523,3881.7,3881.6,0.8859]
[1760838750213,0.2523,3881.7,3881.6,0.2523]
[1760838750414,0.2533,3881.7,3881.6,0.2523]
[1760838751701,0.2533,3881.7,3881.6,0.8859]
[1760838752381,0.2533,3881.7,3881.6,0.2523]
[1760838758718,0.2533,3881.7,3880.8,2.3616]
[1760838758912,0.1288,3881.6,3881.0,0.6336]
[1760838759131,0.2278,3881.6,3881.3,0.40408496]
[1760838759361,0.099,3881.5,3881.3,0.40408496]
[1760838759745,0.099,3881.4,3881.3,0.40408496]
[1760838762121,0.1288,3881.6,3881.3,2.13208496]
[1760838762452,0.099,3881.6,3881.3,1.728]
[1760838762618,0.099,3881.5,3881.3,1.728]
[1760838762922,0.099,3881.5,3881.4,0.1543]
[1760838763251,0.1543,3881.7,3881.4,0.1543]
[1760838763955,0.099,3881.6,3881.4,0.1543]
[1760838764851,0.099,3881.5,3881.4,0.1543]
[1760838765950,0.1543,3881.7,3881.4,0.1543]
[1760838766153,0.2533,3881.7,3881.4,0.1543]
[1760838768355,0.1543,3881.7,3881.4,0.1543]
[1760838768559,0.099,3881.6,3881.4,0.1543]
[1760838769257,0.099,3881.5,3881.4,0.1543]
[1760838774253,0.1543,3881.7,3881.4,0.1543]
[1760838774460,0.099,3881.6,3881.4,0.1543]
[1760838777733,0.001,3881.7,3881.4,0.6]
[1760838778134,0.001,3881.7,3881.4,0.4457]
[1760838778458,0.001,3881.7,3881.5,0.1288]
[1760838781144,0.001,3881.7,3881.5,0.5745]